fUSD/lending_fUSD_20240424
["ID","MTS","AMOUNT","RATE_DAILY","PERIOD"]
[323364868,1713928238853,-444.375,0.00011413,2]
[323364869,1713928238863,-157.36703976,0.00011428,2]
[323364870,1713928238877,-7500.0,0.00011444,2]
[323364871,1713928238888,-162.51347916,0.00011446,2]
[323364872,1713928238898,-500.0,0.00011446,2]
[323364873,1713928238908,-174.12900968,0.0001145,2]
[323364874,1713928238918,-11642.67052762,0.0001145,2]
[323364875,1713928238927,-173.56943637,0.0001145,2]
[323364876,1713928238939,-1000.0,0.00011451,2]
[323364877,1713928238949,-500.0,0.00011451,2]
[323364878,1713928238959,-1000.0,0.00011452,2]
[323364879,1713928238969,-1000.0,0.00011452,2]
[323364880,1713928238980,-500.0,0.00011452,2]
[323364881,1713928238989,-1201.47907421,0.0001147,2]
[323364882,1713928238999,-164.48509262,0.00011481,2]
[323364883,1713928239009,-1000.0,0.00011486,2]
[323364884,1713928239019,-1047.7603,0.00011486,2]
[323364885,1713928239030,-1010.0,0.000115,2]
[323364886,1713928239041,-393.4797,0.000115,2]
[323364887,1713928239051,-3055.5221176,0.00011535,2]
[323364888,1713928239061,-22772.7828033,0.00011535,2]
[323364889,1713928239071,-11713.576445,0.00011535,2]
[323364890,1713928239081,-2095.1771346,0.00011535,2]
[323364891,1713928239092,-1960.5116879,0.00011535,2]
[323364892,1713928239102,-243.3645121,0.00011535,2]
[323364893,1713928239111,-1925.0799902,0.00011535,2]
[323364894,1713928239122,-237.757565,0.00011535,2]
[323364895,1713928239133,-220.59535818,0.00011535,2]
[323364896,1713928239142,-153.15609355,0.00011536,2]
[323364897,1713928239151,-288.57189091,0.00011543,2]
[323364898,1713928239161,-1460.71913314,0.00011543,2]
[323364899,1713928239170,-361.29363938,0.00011543,2]
[323364900,1713928239180,-155.09179001,0.00011544,2]
[323364901,1713928239190,-475.62676994,0.00011544,2]
[323364902,1713928239199,-442.62888111,0.00011544,2]
[323364903,1713928239208,-177.34389153,0.00011544,2]
[323364904,1713928239218,-714.10343579,0.00011544,2]
[323364905,1713928239227,-398.75764473,0.00011544,2]
[323364906,1713928239237,-2447.72236399,0.00011544,2]
[323364907,1713928239247,-662.45869342,0.00011544,2]
[323364908,1713928239256,-223.37113664,0.00011544,2]
[323364909,1713928239266,-2443.93874465,0.00011544,2]
[323364910,1713928239275,-239.66986143,0.00011544,2]
[323364911,1713928239285,-157.92838371,0.00011544,2]
[323364912,1713928239294,-156.12651976,0.00011544,2]
[323364913,1713928239304,-155.1501937,0.00011544,2]
[323364914,1713928239314,-232.53197315,0.00011544,2]
[323364915,1713928239324,-474.6392445,0.00011544,2]
[323364916,1713928239334,-582.63436646,0.00011544,2]
[323364917,1713928239343,-825.8329,0.00011544,2]
[323364918,1713928239352,-35615.68635076,0.00011544,2]
[323364919,1713928239362,-1142.0,0.00011546,2]
[323364920,1713928239372,-251.40991037,0.00011546,2]
[323364921,1713928239383,-812742.45541484,0.00011546,2]
[323364943,1713928240042,-1319.0,0.00011199,2]
[323364944,1713928240054,-403.04215002,0.00011199,2]
[323364945,1713928240097,-843.4,0.00011199,2]
[323364946,1713928240151,-10047.25720693,0.00011199,2]
[323364947,1713928240160,-15165.03267162,0.00011546,2]
[323364960,1713928242740,-1000.54565817,0.00011546,2]
[323364965,1713928242900,-389491.01027016,0.00011546,2]
[323364966,1713928243009,-446261.24125937,0.00011546,2]
[323364967,1713928243019,-499.99,0.00011546,2]
[323364968,1713928243028,-195.07,0.0001155,2]
[323364969,1713928243038,-11642.67052757,0.00011582,2]
[323364970,1713928243048,-200.0,0.000116,4]
[323364971,1713928243058,-500.0,0.000117,4]
[323364972,1713928243069,-11642.67052757,0.00011714,2]
[323364973,1713928243078,-600.0,0.0001176,2]
[323364974,1713928243087,-700.0,0.000118,4]
[323364975,1713928243096,-11642.67052757,0.00011845,2]
[323364976,1713928243105,-400.0,0.00011875,2]
[323364977,1713928243115,-1000.0,0.000119,4]
[323364978,1713928243124,-11642.67052757,0.00011977,2]
[323364979,1713928243133,-1997.98728074,0.00011995,2]
[323364980,1713928243145,-174.735208,0.00011998,2]
[323364981,1713928243157,-2115.65265172,0.00011999,2]
[323364982,1713928243166,-155.20933976,0.00012,2]
[323364983,1713928243175,-506435.5641877,0.00012,2]
[323364984,1713928243187,-274.733615,0.00012,2]
[323364985,1713928243197,-289.10060993,0.00012,2]
[323364986,1713928243226,-7422.1201178,0.00012,2]
[323365018,1713928245945,-730.35956657,0.00011543,2]
[323365019,1713928245954,-155.13985222,0.00011545,2]
[323365020,1713928245964,-979.0,0.00011546,2]
[323365021,1713928245974,-926.3459036,0.00012,2]
[323365022,1713928246005,-673.49542188,0.00012,2]
[323365023,1713928454297,151.0,0.00021266,120]
[323365024,1713928525250,6338.34248972,0.0003,120]
[323365025,1713928977605,151.0,0.00020469,120]
[323365033,1713929431867,-370.06678389,8.881e-05,2]
[323365034,1713929431877,-404.80228358,8.882e-05,2]
[323365035,1713929431887,-16.77045705,8.892e-05,2]
[323365036,1713929431926,-336.38954295,8.892e-05,2]
[323365037,1713929431936,-31.97093253,0.00010618,2]
[323365038,1713929431970,-130.31732833,0.00010618,2]
[323365039,1713929431979,-189.08267167,0.00010658,2]
[323365040,1713929432080,-187.29732833,0.00010658,2]
[323365041,1713929432090,-7475.08,0.00010718,2]
[323365042,1713929432107,-1000.0,0.00010792,2]
[323365043,1713929432117,-178.1,0.00010853,2]
[323365044,1713929432125,-1159.55967167,0.000109,2]
[323365045,1713929432137,-476.80269118,0.000109,2]
[323365046,1713929432275,-345.22349195,0.000109,2]
[323365047,1713929432285,-1373.47532514,0.00010921,2]
[323365048,1713929432298,-503.022718,0.00010921,2]
[323365055,1713929437952,-3956.80971926,0.00010921,2]
[323365056,1713929438058,-4166.6922376,0.00010921,2]
[323365057,1713929438067,-339.98682884,0.00010921,2]
[323365058,1713929438077,-10000.0,0.00010959,2]
[323365059,1713929438087,-12612.69935695,0.00011,2]
[323365060,1713929438096,-353.16,0.00011156,2]
[323365061,1713929438105,-499.99,0.00011156,2]
[323365062,1713929438115,-671.5974,0.00011228,2]
[323365063,1713929438124,-151.86,0.00011308,2]
[323365064,1713929438133,-264.167,0.00011313,2]
[323365065,1713929438142,-1859.0,0.00011313,2]
[323365066,1713929438151,-437.88,0.00011313,2]
[323365067,1713929438161,-1475.0,0.00011313,2]
[323365068,1713929438170,-402.0,0.00011313,2]
[323365069,1713929438179,-150.0,0.00011313,2]
[323365070,1713929438188,-2446.0,0.00011313,2]
[323365071,1713929438197,-3121.0,0.00011313,2]
[323365072,1713929438206,-214.0,0.00011313,2]
[323365073,1713929438216,-1259.30978314,0.00011313,2]
[323365074,1713929438259,-381.69021686,0.00011313,2]
[323365075,1713929438268,-1140.0,0.00011313,2]
[323365076,1713929438278,-195.0,0.00011313,2]
[323365078,1713929438287,-443.0,0.00011313,2]
[323365080,1713929438295,-1394.0,0.00011313,2]
[323365083,1713929438305,-5731.0,0.00011313,2]
[323365084,1713929438314,-2295.0,0.00011313,2]
[323365085,1713929438324,-462.0,0.00011313,2]
[323365086,1713929438333,-970.0,0.00011313,2]
[323365087,1713929438341,-2706.0,0.00011313,2]
[323365088,1713929438353,-5894.0,0.00011313,2]
[323365089,1713929438362,-37702.0,0.00011313,2]
[323365090,1713929438371,-1256.0,0.00011313,2]
[323365091,1713929438381,-100000.0,0.00011328,2]
[323365092,1713929438390,-500.0,0.00011352,2]
[323365093,1713929438400,-419.16,0.0001137,2]
[323365094,1713929438409,-522.07,0.0001137,2]
[323365095,1713929438418,-522.07,0.0001137,2]
[323365096,1713929438428,-419.16,0.0001137,2]
[323365097,1713929438437,-163.85,0.0001137,2]
[323365098,1713929438447,-178.1,0.00011419,2]
[323365099,1713929438457,-419.16,0.000115,2]
[323365100,1713929438466,-150.0,0.000115,2]
[323365101,1713929438475,-700.46,0.000115,2]
[323365102,1713929438484,-300.43,0.000115,2]
[323365103,1713929438494,-522.07,0.000115,2]
[323365104,1713929438503,-273.04,0.000115,2]
[323365105,1713929438512,-237.0,0.000115,2]
[323365106,1713929438521,-393.0,0.000115,2]
[323365107,1713929438530,-161.83869173,0.00011544,2]
[323365108,1713929438539,-20953.62233975,0.00011877,2]
[323365109,1713929438549,-164.4850926,0.000119,2]
[323365110,1713929438558,-174.12900968,0.000119,2]
[323365111,1713929438567,-6791.55780785,0.000119,2]
[323365112,1713929438576,-2596.0475715,0.00011989,2]
[323365113,1713929438585,-825.4436709,0.00011989,2]
[323365114,1713929438595,-601.2230241,0.00011989,2]
[323365115,1713929438604,-2184.7441296,0.00011989,2]
[323365116,1713929438613,-27271.8074312,0.00011989,2]
[323365117,1713929438622,-211.66689966,0.00011989,2]
[323365118,1713929438631,-740.4323818,0.00011989,2]
[323365119,1713929438641,-6791.55780774,0.00011991,2]
[323365120,1713929438650,-1779.22913587,0.00011997,2]
[323365121,1713929438659,-155.53449854,0.00011998,2]
[323365122,1713929438668,-883.0,0.00011999,2]
[323365123,1713929438678,-365.17978329,0.00011999,2]
[323365124,1713929438687,-508115.22553335,0.00011999,2]
[323365132,1713929440215,-479.36407003,0.00011313,2]
[323365133,1713929440229,-470.78892039,0.00011313,2]
[323365137,1713929443085,-277.84700958,0.00011313,2]
[323365138,1713929443097,-542.0,0.00011313,2]
[323365139,1713929443109,-153.15609355,0.00011989,2]
[323365140,1713929443120,-2486.06053572,0.00011999,2]
[323365160,1713929445916,-404.80228358,0.00011998,2]
[323365162,1713929445926,-790.0,0.00011999,2]
[323365164,1713929445935,-26844.70886417,0.00011999,2]
[323365182,1713929446239,-3264.72015093,0.00011999,2]
[323365183,1713929446283,-99546.6443219,0.00011999,2]
[323365184,1713929446295,-80379.62580511,0.00011999,2]
[323365185,1713929446308,-3008.16,0.00011999,2]
[323365186,1713929446366,-2718.69299999,0.00011999,2]
[323365187,1713929582049,151.0,0.00019612,120]
[323365188,1713929906321,151.0,0.00020469,120]
[323365189,1713930267583,151.0,0.00020469,120]
[323365196,1713930632050,-370.06678389,9.066e-05,2]
[323365197,1713930632059,-470.4565354,9.067e-05,2]
[323365198,1713930632154,-734.63521325,9.067e-05,2]
[323365199,1713930632214,-184.32682303,9.067e-05,2]
[323365200,1713930632224,-334.11,9.071e-05,2]
[323365201,1713930632234,-151.86,0.00010791,2]
[323365202,1713930632243,-5679.38586806,0.00010959,2]
[323365203,1713930632271,-2478.37413194,0.00010959,2]
[323365204,1713930632281,-354.21,0.00010974,2]
[323365205,1713930632290,-150.0,0.00010986,2]
[323365206,1713930632300,-150.0,0.00011001,2]
[323365207,1713930632309,-800.0,0.00011002,2]
[323365208,1713930632319,-299.99,0.00011002,2]
[323365209,1713930632328,-7866.17587058,0.00011057,2]
[323365210,1713930632381,-816.24453498,0.00011057,2]
[323365211,1713930632392,-2584.14282898,0.00011057,2]
[323365212,1713930632403,-691.437,0.00011057,2]
[323365257,1713930638062,-468.75,0.00011057,2]
[323365258,1713930638073,-185.94912241,0.00011057,2]
[323365259,1713930638083,-182.32,0.00011058,2]
[323365260,1713930638093,-2913.87777231,0.00011058,2]
[323365261,1713930638105,-796.44791203,0.00011058,2]
[323365262,1713930638137,-2230.65,0.00011058,2]
[323365263,1713930638148,-2208.1150035,0.00011058,2]
[323365264,1713930638160,-2441.0,0.00011058,2]
[323365265,1713930638185,-10000.0,0.00011058,2]
[323365266,1713930638234,-1507.91185099,0.00011058,2]
[323365267,1713930638292,-6119.88798596,0.00011058,2]
[323365268,1713930638301,-636.99,0.00011068,2]
[323365269,1713930638311,-200.0,0.000111,2]
[323365270,1713930638320,-462.0,0.00011213,2]
[323365271,1713930638329,-1394.0,0.00011213,2]
[323365272,1713930638338,-970.0,0.00011213,2]
[323365273,1713930638348,-542.0,0.00011213,2]
[323365274,1713930638655,-214.117,0.00011213,2]
[323365275,1713930638664,-1256.0,0.00011213,2]
[323365276,1713930638673,-437.0,0.00011213,2]
[323365277,1713930638682,-2008.178,0.00011213,2]
[323365278,1713930638692,-258.0,0.00011213,2]
[323365279,1713930638701,-610.0,0.00011213,2]
[323365280,1713930638710,-807.0,0.00011213,2]
[323365281,1713930638719,-633.06,0.00011213,2]
[323365282,1713930638729,-1475.0,0.00011213,2]
[323365283,1713930638738,-402.0,0.00011213,2]
[323365284,1713930638747,-214.0,0.00011213,2]
[323365285,1713930638756,-1641.0,0.00011213,2]
[323365286,1713930638765,-443.0,0.00011213,2]
[323365287,1713930638774,-1140.0,0.00011213,2]
[323365288,1713930638783,-195.0,0.00011213,2]
[323365289,1713930638792,-2706.0,0.00011213,2]
[323365290,1713930638801,-150.0,0.00011213,2]
[323365291,1713930638810,-150.634,0.00011213,2]
[323365292,1713930638819,-530.398,0.00011213,2]
[323365293,1713930638829,-150.0,0.00011213,2]
[323365294,1713930638838,-10932.594,0.00011213,2]
[323365295,1713930638847,-1074.592,0.00011213,2]
[323365296,1713930638856,-150.292,0.00011213,2]
[323365297,1713930638867,-150.0,0.00011213,2]
[323365298,1713930638876,-1056.0,0.00011213,2]
[323365299,1713930638884,-334.11,0.00011335,2]
[323365300,1713930638893,-173.74,0.00011499,2]
[323365301,1713930638902,-150.34763385,0.00011564,2]
[323365302,1713930638911,-1591.6461,0.00011677,2]
[323365303,1713930638920,-245000.0,0.00011777,2]
[323365304,1713930638930,-419.16,0.00011856,2]
[323365305,1713930638939,-100000.0,0.00011899,2]
[323365306,1713930638948,-158.62392294,0.00011899,2]
[323365307,1713930638957,-6276.53818389,0.00011899,2]
[323365308,1713930638966,-800.0,0.00011904,2]
[323365309,1713930638975,-500.0,0.00011904,2]
[323365310,1713930638984,-156.21243264,0.00011989,2]
[323365311,1713930638994,-841.318557,0.00011989,2]
[323365312,1713930639003,-19281.7516907,0.00011989,2]
[323365313,1713930639012,-617.0269848,0.00011989,2]
[323365314,1713930639020,-687.8697258,0.00011989,2]
[323365315,1713930639029,-1810.1659788,0.00011989,2]
[323365316,1713930639039,-6276.53818385,0.0001199,2]
[323365317,1713930639048,-316.44060217,0.00011997,2]
[323365318,1713930639058,-1745.02951385,0.00011997,2]
[323365319,1713930639067,-1259.50385619,0.00011997,2]
[323365320,1713930639076,-1787.62886503,0.00011997,2]
[323365321,1713930639086,-716.0,0.00011999,2]
[323365322,1713930639095,-201.12792829,0.00011999,2]
[323365323,1713930639104,-629064.06282337,0.00011999,2]
[323365324,1713930639161,-381.33465368,0.00011999,2]
[323365328,1713930640087,-288.77180831,0.00011999,2]
[323365329,1713930640099,-743.83348693,0.00011999,2]
[323365330,1713930640320,-9004.34196639,0.00011999,2]
[323365331,1713930640419,-329.52314871,0.00011999,2]
[323365332,1713930640431,-1100.85332716,0.00011999,2]
[323365333,1713930640443,-864.89280008,0.00011999,2]
[323365334,1713930640455,-411.6133495,0.00011999,2]
[323365351,1713930643187,-382.7350001,0.00011989,2]
[323365352,1713930646116,-235.8,0.00011757,2]
[323365353,1713930646126,-318.3637974,0.00011989,2]
[323365354,1713930646135,-12816.40634001,0.00011999,2]
[323365355,1713930646225,-4664.46745702,0.00011999,2]
[323365357,1713930741919,450.0,8e-05,2]
[323365358,1713930848098,151.0,0.00020469,120]
[323365361,1713931512939,-404.80228358,9.196e-05,2]
[323365362,1713931512964,-370.06678389,9.197e-05,2]
[323365363,1713931512987,-236.56224941,9.198e-05,2]
[323365364,1713931513013,-316.88,9.203e-05,2]
[323365365,1713931513038,-13355.04893668,0.00010818,2]
[323365366,1713931513061,-693.04588733,0.00010918,2]
[323365367,1713931513085,-5734.74891805,0.00010921,2]
[323365368,1713931513110,-20195.69,0.00010959,2]
[323365369,1713931513135,-622.77,0.00010959,3]
[323365370,1713931513440,-1000.0,0.00010992,2]
[323365371,1713931513465,-306.3,0.00011017,2]
[323365372,1713931513493,-200.01,0.0001105,2]
[323365373,1713931513517,-12612.69935695,0.00011212,2]
[323365374,1713931513541,-150.045,0.00011213,2]
[323365375,1713931513566,-150.032,0.00011213,2]
[323365376,1713931513591,-1394.0,0.00011213,2]
[323365377,1713931513616,-969.0,0.00011213,2]
[323365378,1713931513640,-542.0,0.00011213,2]
[323365379,1713931513663,-395.887,0.00011213,2]
[323365380,1713931513686,-1474.0,0.00011213,2]
[323365381,1713931513710,-214.0,0.00011213,2]
[323365382,1713931513734,-1640.0,0.00011213,2]
[323365383,1713931513758,-443.0,0.00011213,2]
[323365384,1713931513781,-1134.999,0.00011213,2]
[323365385,1713931513806,-195.0,0.00011213,2]
[323365386,1713931513830,-310.5711932,0.00011397,2]
[323365387,1713931513859,-316.88,0.00011467,2]
[323365388,1713931513883,-13496.96139091,0.00011677,2]
[323365443,1713931714207,-715.7,0.000128,23]
[323365444,1713931725174,-5208.468349,0.000128,22]
[323365445,1713931819857,528.6,0.000251,120]
[323365458,1713931832256,-370.06678389,0.00010871,2]
[323365460,1713931832265,-32.71535846,0.00010872,2]
[323365466,1713931832361,-579.01464154,0.00010872,2]
[323365467,1713931832370,-159.53,0.00010947,2]
[323365468,1713931832379,-711.37661245,0.00010987,2]
[323365469,1713931832391,-16425.78245905,0.00010987,2]
[323365470,1713931832447,-4159.4909285,0.00010987,2]
[323365471,1713931832456,-500.0,0.00011027,3]
[323365472,1713931832465,-12612.69935695,0.00011112,2]
[323365473,1713931832474,-9166.1933,0.00011113,2]
[323365474,1713931832484,-1056.0,0.00011295,2]
[323365475,1713931832493,-1139.28,0.0001131,2]
[323365476,1713931832502,-154.56,0.0001136,2]
[323365477,1713931832511,-16560.1,0.0001136,2]
[323365478,1713931832520,-9210.55846935,0.00011397,7]
[323365479,1713931832529,-450.0,0.00011397,2]
[323365480,1713931832538,-310.5711932,0.00011397,2]
[323365481,1713931832548,-168.4,0.00011473,2]
[323365482,1713931832843,-154.56,0.00011479,2]
[323365483,1713931832853,-1736.9092,0.00011577,2]
[323365484,1713931832863,-154.56,0.00011597,2]
[323365485,1713931832872,-86503.03860909,0.00011677,2]
[323365486,1713931832881,-48562.828,0.00011677,2]
[323365487,1713931832891,-154.56,0.00011716,2]
[323365488,1713931832901,-154.56,0.00011834,2]
[323365489,1713931832910,-840.97186,0.0001188,2]
[323365490,1713931832919,-1000.0,0.00011899,2]
[323365491,1713931832929,-512.9575,0.00011899,2]
[323365492,1713931832938,-522.01,0.00011933,2]
[323365493,1713931832948,-162.79,0.00011933,2]
[323365494,1713931832958,-150.0,0.00011933,2]
[323365495,1713931832968,-151.81,0.00011933,2]
[323365496,1713931832978,-350.43,0.00011933,2]
[323365497,1713931832987,-200.88,0.00011933,2]
[323365498,1713931832998,-151.1,0.00011933,2]
[323365499,1713931833009,-150.0,0.00011933,2]
[323365500,1713931833022,-150.0,0.00011933,2]
[323365501,1713931833032,-150.0,0.00011933,2]
[323365502,1713931833042,-522.01,0.00011933,2]
[323365503,1713931833053,-150.0,0.00011933,2]
[323365504,1713931833063,-419.11,0.00011933,2]
[323365505,1713931833073,-150.0,0.00011933,2]
[323365506,1713931833083,-150.0,0.00011933,2]
[323365507,1713931833093,-150.0,0.00011933,2]
[323365508,1713931833102,-350.43,0.00011933,2]
[323365509,1713931833112,-162.79,0.00011933,2]
[323365510,1713931833121,-150.0,0.00011933,2]
[323365511,1713931833130,-150.0,0.00011933,2]
[323365512,1713931833140,-699.42,0.00011933,2]
[323365513,1713931833149,-150.0,0.00011933,2]
[323365514,1713931833158,-162.79,0.00011933,2]
[323365515,1713931833168,-419.11,0.00011933,2]
[323365516,1713931833178,-150.0,0.00011933,2]
[323365517,1713931833187,-522.01,0.00011933,2]
[323365518,1713931833196,-303.49,0.00011933,2]
[323365519,1713931833205,-150.0,0.00011933,2]
[323365520,1713931833216,-150.0,0.00011933,2]
[323365521,1713931833226,-150.59,0.00011933,2]
[323365522,1713931833236,-419.11,0.00011933,2]
[323365523,1713931833246,-165.31,0.00011933,2]
[323365524,1713931833256,-150.35,0.00011933,2]
[323365525,1713931833266,-527.11,0.00011933,2]
[323365526,1713931833275,-354.04,0.00011933,2]
[323365527,1713931833285,-151.82,0.00011933,2]
[323365528,1713931833294,-151.56,0.00011933,2]
[323365529,1713931833304,-150.67,0.00011933,2]
[323365530,1713931833313,-150.0,0.00011933,2]
[323365531,1713931833322,-423.86,0.00011933,2]
[323365532,1713931833331,-150.0,0.00011933,2]
[323365533,1713931833340,-522.01,0.00011933,2]
[323365534,1713931833349,-162.79,0.00011933,2]
[323365535,1713931833359,-150.0,0.00011933,2]
[323365536,1713931833368,-350.43,0.00011933,2]
[323365537,1713931833378,-150.0,0.00011933,2]
[323365538,1713931833387,-150.0,0.00011933,2]
[323365539,1713931833398,-350.43,0.00011933,2]
[323365540,1713931833407,-150.0,0.00011933,2]
[323365541,1713931833416,-162.79,0.00011933,2]
[323365542,1713931833426,-419.11,0.00011933,2]
[323365543,1713931833435,-150.0,0.00011933,2]
[323365544,1713931833447,-150.0,0.00011933,2]
[323365545,1713931833456,-522.01,0.00011933,2]
[323365546,1713931833466,-150.0,0.00011933,2]
[323365547,1713931833475,-419.11,0.00011933,2]
[323365548,1713931833485,-150.0,0.00011933,2]
[323365549,1713931833494,-419.11,0.00011933,2]
[323365550,1713931833504,-522.01,0.00011933,2]
[323365551,1713931833514,-162.79,0.00011933,2]
[323365552,1713931833523,-150.0,0.00011933,2]
[323365553,1713931833533,-150.0,0.00011933,2]
[323365554,1713931833542,-350.43,0.00011933,2]
[323365555,1713931833552,-419.11,0.00011933,2]
[323365556,1713931833561,-150.0,0.00011933,2]
[323365557,1713931833571,-332.41,0.00011933,2]
[323365558,1713931833581,-150.0,0.00011933,2]
[323365559,1713931833592,-350.43,0.00011933,2]
[323365560,1713931833601,-522.01,0.00011933,2]
[323365561,1713931833610,-162.79,0.00011933,2]
[323365562,1713931833619,-700.86,0.00011933,2]
[323365563,1713931833628,-300.0,0.00011933,2]
[323365564,1713931833637,-325.58,0.00011933,2]
[323365565,1713931833650,-344.36,0.00011933,2]
[323365566,1713931833659,-150.0,0.00011933,2]
[323365567,1713931833670,-162.79,0.00011933,2]
[323365568,1713931833681,-817.79,0.00011933,2]
[323365569,1713931833691,-160.24,0.00011933,2]
[323365570,1713931833701,-154.56,0.00011952,2]
[323365571,1713931833710,-501.2150446,0.0001197,2]
[323365572,1713931833719,-500.0,0.0001197,2]
[323365573,1713931833729,-558.93,0.0001197,2]
[323365574,1713931833738,-764.29969594,0.00011989,2]
[323365575,1713931833748,-1216.3129925,0.00011989,2]
[323365576,1713931833758,-299.99,0.00011989,2]
[323365577,1713931833770,-428.4909617,0.00011989,2]
[323365578,1713931833779,-163.59395512,0.0001199,2]
[323365579,1713931833789,-207.64707866,0.00011997,2]
[323365580,1713931833799,-368.80372318,0.00011997,2]
[323365581,1713931833809,-405.32667551,0.00011997,2]
[323365582,1713931833818,-3005.81781785,0.00011997,2]
[323365583,1713931833830,-572.70397434,0.00011997,7]
[323365584,1713931833839,-38240.53595773,0.00011999,2]
[323365585,1713931833853,-67345.1210374,0.00011999,2]
[323365586,1713931833864,-1329.28402773,0.00011999,2]
[323365587,1713931833891,-6864.97708171,0.00011999,2]
[323365588,1713931833929,-648.56657786,0.00011999,2]
[323365594,1713931838576,-236.56224941,0.0001087,2]
[323365595,1713931838585,-1622.56989132,0.00011999,2]
[323365596,1713931838611,-14253.01605069,0.00011999,2]
[323365597,1713931838622,-1758.56160961,0.00011999,2]
[323365598,1713931838652,-146563.71366778,0.00011999,2]
[323365599,1713931838662,-365.17978328,0.00011999,2]
[323365600,1713931838671,-299240.68063409,0.00012,2]
[323365601,1713931838681,-1000.0,0.00012,2]
[323365602,1713931838690,-30000.0,0.00012,2]
[323365603,1713931838700,-2000.0,0.00012,2]
[323365604,1713931838709,-2000.0,0.00012,2]
[323365607,1713931838718,-17861.02963715,0.00012,2]
[323365637,1713931838941,-4008.6078707,0.00012,2]
[323365642,1713931839012,-2750.0,0.00012,2]
[323365644,1713931839024,-841.43,0.00012,2]
[323365646,1713931839033,-306.78,0.00012,2]
[323365647,1713931839042,-317.52,0.00012,2]
[323365649,1713931839051,-1368.52,0.00012,2]
[323365651,1713931839062,-712.88,0.00012,2]
[323365653,1713931839071,-162.86,0.00012033,2]
[323365655,1713931839080,-150.0,0.00012153,2]
[323365657,1713931839089,-150.0,0.00012153,2]
[323365659,1713931839099,-150.0,0.00012153,2]
[323365662,1713931839108,-150.0,0.00012153,2]
[323365663,1713931839117,-301.84,0.00012153,2]
[323365666,1713931839127,-457.05783301,0.000123,2]
[323365668,1713931839135,-150.0,0.000123,2]
[323365670,1713931839146,-159.53,0.00012316,2]
[323365672,1713931839154,-1000.0,0.00012366,2]
[323365674,1713931839163,-173429.5087946,0.000124,6]
[323365678,1713931839195,-953.23988846,0.000124,6]
[323366418,1713931846402,-746.5847709,0.000124,6]
[323366857,1713932309175,-150.0,9.878e-05,2]
[323366858,1713932352767,-444.6202973,9.877e-05,2]
[323366859,1713932352792,-220.06678389,9.878e-05,2]
[323366860,1713932352819,-329.88,9.888e-05,2]
[323366864,1713932515863,-236.56224941,8.534e-05,2]
[323366865,1713932515889,-313.38,8.535e-05,2]
[323366866,1713932515916,-560.12324351,0.0001031,2]
[323366867,1713932515943,-179.1,0.00010311,2]
[323366868,1713932515969,-152.73,0.0001036,2]
[323366869,1713932515995,-600.0,0.00010377,2]
[323366870,1713932516021,-152.73,0.00010377,2]
[323366871,1713932516049,-152.73,0.00010395,2]
[323366872,1713932516073,-152.73,0.00010412,2]
[323366873,1713932516097,-500.0,0.00010435,2]
[323366874,1713932516122,-407.48,0.00010764,2]
[323366875,1713932516147,-150.79,0.00010768,2]
[323366876,1713932516171,-370.06678389,0.00010798,2]
[323366877,1713932516197,-313.38,0.00010799,2]
[323366878,1713932516222,-150.79,0.00010808,2]
[323366879,1713932516250,-150.79,0.00010848,2]
[323366880,1713932516274,-150.79,0.00010888,2]
[323366881,1713932516301,-499.99,0.00010888,2]
[323366882,1713932516327,-1455.36,0.00010888,2]
[323366883,1713932516351,-167.96,0.00010907,2]